fUST/lending_fUST_20241118
["ID","MTS","AMOUNT","RATE_DAILY","PERIOD"]
[342503720,1731937849022,-500.0,0.00014246,2]
[342503721,1731937849031,-500.0,0.00014246,2]
[342503722,1731937849045,-500.0,0.00014246,2]
[342503723,1731937849054,-500.0,0.00014246,2]
[342503724,1731937849063,-500.0,0.00014246,2]
[342503725,1731937849072,-500.0,0.00014246,2]
[342503726,1731937849082,-500.0,0.00014246,2]
[342503727,1731937849091,-500.0,0.00014246,2]
[342503728,1731937849101,-500.0,0.00014246,2]
[342503729,1731937849112,-500.0,0.00014246,2]
[342503730,1731937849121,-500.0,0.00014246,2]
[342503731,1731937849131,-1612.2,0.00014246,2]
[342503732,1731937849141,-500.0,0.00014246,2]
[342503733,1731937849150,-500.0,0.00014246,2]
[342503734,1731937849160,-500.0,0.00014246,2]
[342503735,1731937849171,-500.0,0.00014246,2]
[342503736,1731937849181,-500.0,0.00014246,2]
[342503737,1731937849192,-500.0,0.00014246,2]
[342503738,1731937849202,-500.0,0.00014246,2]
[342503739,1731937849213,-277.9,0.00014246,2]
[342503740,1731937849223,-617.24,0.00014246,2]
[342503741,1731937849233,-1909.75,0.00014246,2]
[342503742,1731937849243,-538.07,0.00014246,2]
[342503743,1731937849253,-949.68,0.00014246,2]
[342503744,1731937849262,-507.22,0.00014246,2]
[342503745,1731937849273,-560.04,0.00014246,2]
[342503746,1731937849282,-1379.42,0.00014246,2]
[342503747,1731937849294,-500.0,0.00014246,2]
[342503748,1731937849304,-1339.27,0.00014246,2]
[342503749,1731937849314,-1164.66,0.00014246,2]
[342503750,1731937849324,-500.0,0.00014246,2]
[342503751,1731937849334,-357.53,0.00014246,2]
[342503752,1731937849343,-405.24,0.00014246,2]
[342503753,1731937849353,-5216.83,0.00014246,2]
[342503754,1731937849362,-289.08,0.00014246,2]
[342503755,1731937849372,-500.0,0.00014246,2]
[342503756,1731937849382,-831.28,0.00014246,2]
[342503757,1731937849392,-500.0,0.00014246,2]
[342503758,1731937849402,-632.08,0.00014246,2]
[342503759,1731937849412,-1429.28,0.00014246,2]
[342503760,1731937849422,-500.0,0.00014246,2]
[342503761,1731937849431,-6920.86,0.00014246,2]
[342503762,1731937849440,-500.0,0.00014246,2]
[342503763,1731937849450,-500.0,0.00014246,2]
[342503764,1731937849459,-968.53,0.00014246,2]
[342503765,1731937849469,-500.0,0.00014246,2]
[342503766,1731937849478,-500.0,0.00014246,2]
[342503767,1731937849487,-500.0,0.00014246,2]
[342503768,1731937849497,-500.0,0.00014246,2]
[342503769,1731937849508,-500.0,0.00014246,2]
[342503770,1731937849517,-500.0,0.00014246,2]
[342503771,1731937849526,-500.0,0.00014246,2]
[342503772,1731937849538,-2917.229523,0.00014384,2]
[342503773,1731937849547,-242.621355,0.00014419,2]
[342503774,1731937849557,-222.084,0.00014515,2]
[342503775,1731937849567,-183.11686846,0.00014519,2]
[342503776,1731937849576,-500.0,0.00014519,2]
[342503777,1731937849586,-211.27643455,0.00014519,2]
[342503778,1731937849595,-191.73919393,0.00014519,2]
[342503779,1731937849605,-500.0,0.00014519,2]
[342503780,1731937849615,-500.0,0.00014519,2]
[342503781,1731937849624,-500.0,0.00014519,2]
[342503782,1731937849634,-500.0,0.00014519,2]
[342503783,1731937849643,-310.61120487,0.00014519,2]
[342503784,1731937849653,-500.0,0.00014519,2]
[342503785,1731937849663,-242.621355,0.0001452,2]
[342503786,1731937849673,-500.0,0.0001452,2]
[342503787,1731937849682,-500.0,0.0001452,2]
[342503788,1731937849692,-500.0,0.0001452,2]
[342503789,1731937849701,-500.0,0.0001452,2]
[342503790,1731937849711,-500.0,0.0001452,2]
[342503791,1731937849721,-991.91,0.0001452,2]
[342503792,1731937849730,-500.0,0.0001452,2]
[342503793,1731937849740,-500.0,0.0001452,2]
[342503794,1731937849752,-933.15,0.0001452,2]
[342503795,1731937849762,-626.48,0.0001452,2]
[342503796,1731937849776,-500.0,0.0001452,2]
[342503797,1731937849787,-500.0,0.0001452,2]
[342503798,1731937849797,-733.23,0.0001452,2]
[342503799,1731937849806,-1391.55,0.0001452,2]
[342503800,1731937849816,-500.0,0.0001452,2]
[342503801,1731937849825,-500.0,0.0001452,2]
[342503802,1731937849835,-500.0,0.0001452,2]
[342503803,1731937849845,-500.0,0.0001452,2]
[342503804,1731937849855,-500.0,0.0001452,2]
[342503805,1731937849865,-500.0,0.0001452,2]
[342503806,1731937849875,-500.0,0.0001452,2]
[342503807,1731937849884,-500.0,0.0001452,2]
[342503808,1731937849894,-500.0,0.0001452,2]
[342503809,1731937849903,-500.0,0.0001452,2]
[342503810,1731937849912,-500.0,0.0001452,2]
[342503811,1731937849921,-500.0,0.0001452,2]
[342503812,1731937849931,-500.0,0.0001452,2]
[342503813,1731937849940,-466.25499976,0.0001452,2]
[342503814,1731937849950,-500.0,0.0001452,2]
[342503815,1731937849960,-500.0,0.0001452,2]
[342503816,1731937849973,-500.0,0.0001452,2]
[342503817,1731937849983,-500.0,0.0001452,2]
[342503818,1731937849992,-1612.2,0.0001452,2]
[342503819,1731937850002,-500.0,0.0001452,2]
[342503820,1731937850011,-500.0,0.0001452,2]
[342503821,1731937850020,-500.0,0.0001452,2]
[342503822,1731937850030,-500.0,0.0001452,2]
[342503823,1731937850041,-500.0,0.0001452,2]
[342503824,1731937850051,-449.59,0.0001452,2]
[342503825,1731937850061,-500.0,0.0001452,2]
[342503826,1731937850071,-617.24,0.0001452,2]
[342503827,1731937850080,-1909.75,0.0001452,2]
[342503828,1731937850091,-538.07,0.0001452,2]
[342503829,1731937850100,-949.68,0.0001452,2]
[342503830,1731937850110,-507.22,0.0001452,2]
[342503831,1731937850119,-560.04,0.0001452,2]
[342503832,1731937850129,-1379.42,0.0001452,2]
[342503833,1731937850138,-66.89942539,0.0001452,2]
[342503834,1731937948849,-1580.0,0.00013561,2]
[342503892,1731938736154,-1757.31383883,0.00012505,2]
[342503893,1731938832123,-770.48443784,0.0001238,2]
[342503894,1731938836185,-2502.18047733,0.0001238,2]
[342503895,1731938836207,-1544.57821226,0.00012505,2]
[342503896,1731938852114,-177.31383883,0.0001238,2]
[342503897,1731938852138,-790.21957285,0.00012505,2]
[342503899,1731938943029,491.95539928,0.00025,120]
[342503900,1731938947161,-937.86713006,0.00012505,2]
[342503901,1731938947184,-922.29975315,0.00013398,2]
[342503902,1731938947206,-1404.11593787,0.00013398,2]
[342503903,1731938947231,-2426.19788026,0.00013442,2]
[342503904,1731938947256,-300.0,0.00013461,2]
[342503905,1731938947278,-300.0,0.00013461,2]
[342503906,1731938947302,-183.75111972,0.00013462,2]
[342503907,1731938947324,-190366.43364977,0.00013462,2]
[342503908,1731938957117,-46303.11318664,0.00013462,2]
[342503909,1731938968130,-63468.00415352,0.00013462,2]
[342503938,1731939032441,-678.42910191,0.00013398,2]
[342503939,1731939032496,-232.02225487,0.00013398,2]
[342503940,1731939032506,-300.0,0.00013461,2]
[342503941,1731939032516,-300.0,0.00013461,2]
[342503942,1731939032525,-183.75111972,0.00013462,2]
[342503943,1731939032535,-315984.22662985,0.00013462,2]
[342503944,1731939033575,183.226,0.0002475,120]
[342504192,1731939040330,-4615.33551025,0.00013462,2]
[342504194,1731939040346,-7835.68864464,0.00013462,2]
[342504443,1731939043431,-2463.10757368,0.00013462,2]
[342504444,1731939043472,-14547.53828929,0.00013462,2]
[342504462,1731939046301,-17475.8268099,0.00013462,2]
[342504463,1731939047075,-85.60938198,0.00013462,2]
[342504464,1731939047091,-9296.6335029,0.00013462,2]
[342504466,1731939853697,-162.729278,0.00012388,2]
[342504467,1731939853720,-162.729278,0.00012395,2]
[342504468,1731939853744,-162.729278,0.00012402,2]
[342504469,1731939853766,-162.729278,0.00012409,2]
[342504470,1731939853788,-162.729278,0.00012415,2]
[342504471,1731939853809,-162.729278,0.00012422,2]
[342504472,1731939853830,-162.729278,0.00012429,2]
[342504473,1731939853852,-162.729278,0.00012436,2]
[342504474,1731939853876,-50.4367239,0.00012443,2]
[342504475,1731939853907,-112.2925541,0.00012443,2]
[342504476,1731939853930,-162.729278,0.0001245,2]
[342504477,1731939853955,-157.35627254,0.00012523,2]
[342504478,1731939853978,-167.62189536,0.00012596,2]
[342504479,1731939854009,-209.214,0.00012596,2]
[342504480,1731939854034,-975.43505254,0.00012596,2]
[342504481,1731939854056,-4776.8531729,0.00012623,2]
[342504482,1731939854077,-209.214,0.00013193,2]
[342504483,1731939854098,-300.0,0.00013305,2]
[342504484,1731939854118,-800.15965376,0.00013306,2]
[342504486,1731939934248,-451.33233524,0.00013362,2]
[342504487,1731939934273,-574.86439288,0.00013398,2]
[342504488,1731940043116,-681.01354304,0.00013398,2]
[342504489,1731940043142,-300.0,0.00013461,2]
[342504490,1731940043164,-300.0,0.00013461,2]
[342504491,1731940043186,-324.51156866,0.00013462,2]
[342504492,1731940043209,-11898.24668394,0.00013462,2]
[342504493,1731940045113,-1543.90972316,0.00013462,2]
[342504503,1731940153119,-300.0,0.00013461,2]
[342504504,1731940153143,-300.0,0.00013461,2]
[342504505,1731940153165,-2516.8749276,0.00013462,2]
[342504576,1731940232573,-835.00430211,0.00013373,2]
[342504578,1731940232583,-300.0,0.00013461,2]
[342504580,1731940232592,-300.0,0.00013461,2]
[342504582,1731940232601,-216.34104577,0.00013462,2]
[342504584,1731940232611,-2625.50782502,0.00013462,2]
[342504588,1731940232637,-383.13076331,0.00013462,2]
[342504593,1731940232678,-171.54552479,0.00013462,2]
[342504910,1731940238905,-1287.56112789,0.00013462,2]
[342504957,1731940242036,-898.71514,0.00013462,2]
[342504960,1731940242058,-480.89018891,0.00013462,2]
[342504962,1731940242071,-180826.0905686,0.00013462,2]
[342505022,1731940243338,-78772.69490243,0.00013462,2]
[342505025,1731940243350,-1409.94483636,0.00013462,2]
[342505031,1731940243400,-2380.48745868,0.00013462,2]
[342505037,1731940243455,-1357.7913846,0.00013462,2]
[342505372,1731940246669,-1483.93287064,0.00013462,2]
[342505374,1731940246685,-13386.26333076,0.00013462,2]
[342505380,1731940246733,-12216.67370949,0.00013462,2]
[342505445,1731940309002,165.272139,0.00012636,2]
[342505446,1731940309229,165.272139,0.00012651,2]
[342505447,1731940309469,165.272139,0.00012667,2]
[342505448,1731940309686,165.272139,0.00012683,2]
[342505449,1731940309895,165.272139,0.00012699,2]
[342505450,1731940338347,281.61,0.00010959,2]
[342505462,1731940695712,4776.8531729,0.00012471,2]
[342505466,1731941227150,-300.0,0.0001247,2]
[342505467,1731941227173,-300.0,0.0001247,2]
[342505468,1731941227196,-1068.36729925,0.00012471,2]
[342505469,1731941229146,-1554.40487786,0.00012471,2]
[342505470,1731941246109,-2840.5883745,0.00012471,2]
[342505473,1731941350100,-4683.34372029,0.00012471,2]
[342505474,1731941350125,-228.60419589,0.00013,2]
[342505475,1731941350148,-167.371,0.00013193,2]
[342505476,1731941350174,-2431.67649657,0.00013255,2]
[342505477,1731941353125,-7895.3504,0.00013255,2]
[342505478,1731941357131,-171.58837983,0.00013255,2]
[342505479,1731941382764,-150.0,0.0002641,120]
[342505480,1731941382789,-2280.0,0.00027,120]
[342505487,1731941418439,353.3223553,0.00012583,2]
[342505523,1731941432703,-533.04615214,0.00013362,2]
[342505524,1731941432829,-1269.68899374,0.00013362,2]
[342505525,1731941432839,-604.13510499,0.00013362,2]
[342505526,1731941432849,-288.0,0.00013399,2]
[342505527,1731941432859,-300.0,0.00013399,2]
[342505528,1731941432869,-1037.32718463,0.000134,2]
[342505529,1731941432880,-218.96651844,0.000134,2]
[342505530,1731941432890,-998.43977345,0.000134,2]
[342505531,1731941432900,-216.34104578,0.00013462,2]
[342505532,1731941432911,-33221.39987944,0.00013462,2]
[342505533,1731941432924,-18147.89412905,0.00013462,2]
[342505539,1731941438850,-649.37075351,0.00013462,2]
[342505809,1731941443761,-21691.03715554,0.00013462,2]
[342505826,1731941443912,-29677.54208413,0.00013462,2]
[342505828,1731941443924,-3895.10963743,0.00013462,2]
[342506129,1731942405802,-2116.4757234,0.00012322,2]
[342506130,1731942405829,-2116.4757234,0.00012446,2]
[342506131,1731942405851,-300.0,0.00012493,2]
[342506132,1731942405873,-300.0,0.00012493,2]
[342506133,1731942405894,-11877.7045994,0.00012494,2]
[342506134,1731942405915,-180.02125545,0.00013093,2]
[342506135,1731942405937,-170.636,0.00013193,2]
[342506136,1731942405958,-10498.6152764,0.00013284,2]
[342506137,1731942405979,-1898.2250165,0.000134,2]
[342506138,1731942406003,-1120.12613235,0.000134,2]
[342506139,1731942406023,-978.01033955,0.000134,2]
[342506140,1731942406045,-196.63561584,0.00013461,2]
[342506141,1731942406067,-550.3427585,0.00013462,2]
[342506142,1731942406090,-136282.73155921,0.00013462,2]
[342506143,1731942425283,-273.25614429,0.00013327,2]
[342506144,1731942433100,-113.09473464,0.00013327,2]
[342506145,1731942433122,-300.0,0.00013461,2]
[342506146,1731942433144,-300.0,0.00013461,2]
[342506147,1731942433170,-3240.84145592,0.00013462,2]
[342506148,1731942439095,-177.7108551,0.00013462,2]
[342506149,1731942441126,-5221.8292956,0.00013462,2]
[342506152,1731942549144,-220.78928066,0.00012692,2]
[342506153,1731942557138,-110.67663674,0.00012692,2]
[342506223,1731942633182,-698.71375,0.000134,2]
[342506225,1731942633198,-479.35853497,0.000134,2]
[342506227,1731942633208,-300.0,0.00013461,2]
[342506230,1731942633218,-300.0,0.00013461,2]
[342506231,1731942633228,-516.04766342,0.00013462,2]
[342506233,1731942633238,-43364.09380161,0.00013462,2]
[342506709,1731942639139,-0.44458298,0.00013462,2]
[342506710,1731942639151,-9364.08482077,0.00013462,2]
[342506711,1731942639224,-45592.15275298,0.00013462,2]
[342506714,1731942640730,-15843.1966862,0.00013462,2]
[342506718,1731942640818,-2628.07021485,0.00013462,2]
[342506719,1731942640831,-415.29030906,0.00013462,2]
[342506720,1731942640842,-180262.43522168,0.00013462,2]
[342506746,1731942643821,-15519.66871812,0.00013462,2]
[342506748,1731942643839,-71439.95736531,0.00013462,2]
[342506776,1731942646789,-688.82835451,0.00013462,2]
[342506780,1731942646857,-515.65807476,0.00013462,2]
[342506781,1731942646871,-5930.25031611,0.00013462,2]
[342506782,1731942646883,-787.52718709,0.00013462,2]
[342506785,1731943627146,-300.0,0.0001206,2]
[342506786,1731943627170,-300.0,0.0001206,2]
[342506787,1731943627193,-8548.8389565,0.00012061,2]
[342506788,1731943631136,-12609.91996671,0.00012061,2]
[342506789,1731943645097,-582.00988023,0.00012061,2]
[342506792,1731943745121,-3159.23119656,0.00012061,2]
[342506793,1731943745142,-191.2468088,0.00012176,2]
[342506794,1731943745167,-384.2306696,0.00012255,2]
[342506795,1731943745189,-300.0,0.00012264,2]
[342506796,1731943745213,-300.0,0.00012264,2]
[342506797,1731943745235,-8430.5024319,0.00012265,2]
[342506798,1731943745257,-5731.6009848,0.00012397,2]
[342506799,1731943745280,-9902.94410811,0.0001326,2]
[342506800,1731943745312,-595.67116829,0.0001326,2]
[342506801,1731943803619,281.61,0.00010959,2]
[342506856,1731943832273,-303.9936668,0.000133,2]
[342506858,1731943832283,-1030.81324934,0.000133,2]
[342506860,1731943832293,-1000.0,0.00013362,2]
[342506862,1731943832303,-1245.14263397,0.0001339,2]
[342506864,1731943832314,-300.0,0.00013399,2]
[342506866,1731943832323,-300.0,0.00013399,2]
[342506868,1731943832333,-7364.24435363,0.000134,2]
[342506870,1731943832343,-681.01354304,0.000134,2]
[342506872,1731943832353,-403.20663421,0.00013461,2]
[342506873,1731943832363,-743.80738376,0.00013462,2]
[342506874,1731943832373,-20078.61369232,0.00013462,2]
[342506876,1731943832385,-379.99308121,0.00013462,2]
[342506877,1731943832396,-624725.73937918,0.00013462,2]
[342506878,1731943832408,-397.54514529,0.00013462,2]
[342506879,1731943832426,-474.14699786,0.00013462,2]
[342506940,1731943838183,-1372.14888174,0.00013462,2]
[342506959,1731943838354,-28221.78750968,0.00013462,2]
[342506961,1731943838366,-40566.313,0.00013462,2]
[342506963,1731943838377,-60838.2,0.00013462,2]
[342506966,1731943838389,-126165.10690436,0.00013462,2]
[342506968,1731943838401,-478.0725536,0.00013462,2]
[342506970,1731943838412,-891.65,0.00013462,2]
[342506983,1731943838526,-11811.92968245,0.00013462,2]
[342507042,1731943840032,-431.01696856,0.00013462,2]
[342507043,1731943840044,-19010.59999994,0.00013462,2]
[342507044,1731943840055,-3408.55367389,0.00013462,2]
[342507045,1731943840066,-45339.249816,0.00013462,2]
[342507046,1731943840078,-3999.96346781,0.00013462,2]
[342507047,1731943840089,-36329.60000002,0.00013462,2]
[342507096,1731943843152,-336.22628904,0.00013462,2]
[342507107,1731943843245,-12565.00897413,0.00013462,2]
[342507109,1731943843257,-495.35590056,0.00013462,2]
[342507111,1731943843268,-18070.0,0.00013462,2]
[342507214,1731943845936,-16218.15845024,0.00013462,2]
[342507222,1731943846008,-1817.55209268,0.00013462,2]
[342507227,1731943846039,-650.92751539,0.00013462,2]
[342507229,1731943846051,-447.065,0.00013462,2]
[342507230,1731943917981,462.8,0.00010959,2]
[342507233,1731944599080,-2496.0,0.00027,120]
[342507234,1731944827136,-210.35304633,0.00012089,2]
[342507235,1731944829142,-4273.87094684,0.00012089,2]
[342507236,1731944829165,-165.272139,0.00012233,2]
[342507237,1731944829187,-165.272139,0.00012248,2]
[342507238,1731944829213,-300.0,0.00012249,2]
[342507239,1731944829241,-300.0,0.00012249,2]
[342507240,1731944829263,-17199.14675236,0.0001225,2]
[342507241,1731944846114,-1947.9181796,0.0001225,2]
[342507242,1731944851116,-1094.10098802,0.0001225,2]
[342507243,1731944853142,-2762.52256599,0.0001225,2]
[342507245,1731944945124,-1896.31151403,0.0001225,2]
[342507246,1731944945148,-165.272139,0.00012264,2]
[342507247,1731944945174,-165.272139,0.00012279,2]
[342507248,1731944945196,-165.272139,0.00012294,2]
[342507249,1731944945219,-2167.36942979,0.000129,2]
[342507250,1731944945243,-2167.36942975,0.00012991,2]
[342507251,1731944945266,-300.0,0.00012998,2]
[342507252,1731944945287,-700.000001,0.00012999,2]
[342507253,1731944945309,-300.0,0.00012999,2]
[342507254,1731944945332,-738.81580765,0.00013,2]
[342507255,1731944945355,-5193.50010086,0.00013,2]
[342507256,1731944955112,-16960.92677199,0.00013,2]
[342507257,1731944957325,-10977.1770682,0.00013,2]
[342507258,1731944963118,-56717.27567275,0.00013,2]
[342507259,1731944963140,-1251.05736198,0.00013,2]
[342507260,1731944963162,-2167.36942975,0.00013081,2]
[342507261,1731944963185,-2167.36942975,0.00013172,2]
[342507262,1731944963206,-197.85325406,0.000132,2]
[342507263,1731944963227,-468.96563909,0.00013235,2]
[342507264,1731944963253,-793.59032169,0.00013262,2]
[342507265,1731944968111,-1373.77910806,0.00013262,2]
[342507273,1731945012687,13323.043005,0.00012446,2]
[342507341,1731945032429,-300.0,0.00013361,2]
[342507343,1731945032441,-300.0,0.00013361,2]
[342507345,1731945032450,-270.67010651,0.00013362,2]
[342507348,1731945032464,-221.87376525,0.00013362,2]
[342507350,1731945032477,-2988.63643464,0.00013362,2]
[342507352,1731945032487,-94883.50935236,0.00013362,2]
[342507354,1731945032499,-18796.8394584,0.00013362,2]
[342507534,1731945036253,-18453.96989834,0.00013362,2]
[342507608,1731945038389,-2186.05051334,0.00013362,2]
[342507659,1731945038882,-5486.54631719,0.00013362,2]
[342507661,1731945038895,-1225.93254593,0.00013362,2]
[342507662,1731945038907,-599.98798803,0.00013362,2]
[342507663,1731945039033,-1287.0939359,0.00013362,2]
[342507664,1731945039045,-18181.63125798,0.00013362,2]
[342507696,1731945040326,-1922.24783729,0.00013362,2]
[342507698,1731945040338,-1023.69825982,0.00013362,2]
[342507699,1731945040352,-287.44755288,0.00013362,2]
[342507700,1731945040363,-1000.0,0.00013362,2]
[342507701,1731945040373,-6069.2480266,0.00013396,2]
[342507702,1731945040386,-4429.3672498,0.00013396,2]
[342507703,1731945040396,-1347.30668637,0.000134,2]
[342507704,1731945040407,-1403.631084,0.0001346,2]
[342507705,1731945040417,-175.87910688,0.00013461,2]
[342507706,1731945040427,-1009.50839205,0.00013461,2]
[342507707,1731945040437,-10045.50748089,0.00013462,2]
[342507708,1731945040451,-266.95937669,0.00013462,2]
[342507709,1731945040463,-484.5718141,0.00013462,2]
[342507710,1731945040485,-180152.2760579,0.00013462,2]
[342507711,1731945040594,-216.43535329,0.00013462,2]
[342507750,1731945043190,-4950.02218879,0.00013462,2]
[342507758,1731945043307,-4658.69762758,0.00013462,2]
[342507759,1731945043319,-7935.17316283,0.00013462,2]
[342507760,1731945043430,-5449.61853055,0.00013462,2]
[342507804,1731945046306,-141015.57992187,0.00013462,2]
[342507805,1731945046318,-150.112233,0.000135,2]
[342507806,1731945046328,-150.112242,0.000135,2]
[342507807,1731945046338,-152.0,0.00013587,2]
[342507808,1731945046348,-500.0,0.00013673,2]
[342507809,1731945046360,-199.89374248,0.00013673,2]
[342507810,1731945046369,-500.70622727,0.00013673,2]
[342507811,1731945046379,-467.94986428,0.00013673,2]
[342507812,1731945046389,-162.77689588,0.00013673,2]
[342507813,1731945046399,-500.53515116,0.00013673,2]
[342507814,1731945046408,-500.0,0.00013673,2]
[342507815,1731945046418,-500.0,0.00013673,2]
[342507816,1731945046428,-481.73170237,0.00013673,2]
[342507817,1731945046438,-500.0,0.00013673,2]
[342507818,1731945046448,-500.0,0.00013673,2]
[342507819,1731945046459,-173.31552882,0.00013673,2]
[342507820,1731945046470,-500.0,0.00013673,2]
[342507821,1731945046481,-500.0,0.00013673,2]
[342507822,1731945046490,-500.96071574,0.00013673,2]
[342507823,1731945046500,-497.22302714,0.00013673,2]
[342507824,1731945046510,-330.46027677,0.00013673,2]
[342507825,1731945046520,-366.14368123,0.00013673,2]
[342507826,1731945046530,-192.63160891,0.00013698,2]
[342507827,1731945046539,-223.36838756,0.00013698,2]
[342507828,1731945046549,-196.32488527,0.00013698,2]
[342507829,1731945046560,-500.0,0.00013698,2]
[342507830,1731945046570,-500.0,0.00013698,2]
[342507831,1731945046580,-500.0,0.00013698,2]
[342507832,1731945046590,-500.0,0.00013698,2]
[342507833,1731945046600,-317.42784341,0.00013698,2]
[342507834,1731945046610,-254.26517528,0.00013698,2]
[342507835,1731945046621,-393.07062415,0.00013698,2]
[342507836,1731945046631,-500.0,0.00013698,2]
[342507837,1731945046643,-500.0,0.00013698,2]
[342507838,1731945046654,-295.84928397,0.00013698,2]
[342507839,1731945046666,-500.0,0.00013698,2]
[342507840,1731945046677,-500.0,0.00013698,2]
[342507841,1731945046688,-500.0,0.00013698,2]
[342507842,1731945046699,-500.0,0.00013698,2]
[342507843,1731945046713,-500.0,0.00013698,2]
[342507844,1731945046724,-500.0,0.00013698,2]
[342507845,1731945046738,-220.79110193,0.00013698,2]
[342507846,1731945046748,-151.0,0.00013698,2]
[342507847,1731945046759,-167.522239,0.00013698,2]
[342507848,1731945046769,-156.600517,0.00013698,2]
[342507849,1731945046779,-151.0,0.00013698,2]
[342507850,1731945046789,-151.0,0.00013698,2]
[342507851,1731945046799,-191.40442,0.00013698,2]
[342507852,1731945046810,-191.40442,0.00013698,2]
[342507853,1731945046819,-185.319747,0.00013698,2]
[342507854,1731945046829,-500.0,0.00013698,2]
[342507855,1731945046838,-151.0,0.00013698,2]
[342507856,1731945046848,-151.0,0.00013698,2]
[342507857,1731945046857,-166.696893,0.00013698,2]
[342507858,1731945046867,-194.277484,0.00013698,2]
[342507859,1731945046877,-151.0,0.00013698,2]
[342507860,1731945046886,-151.0,0.00013698,2]
[342507861,1731945046896,-151.0,0.00013698,2]
[342507862,1731945046905,-151.0,0.00013698,2]
[342507863,1731945046916,-151.0,0.00013698,2]
[342507864,1731945046925,-500.0,0.00013698,2]
[342507865,1731945046935,-151.0,0.00013698,2]
[342507866,1731945046944,-500.0,0.00013698,2]
[342507867,1731945046954,-507.92011018,0.00013698,2]
[342507868,1731945046963,-151.0,0.00013698,2]
[342507869,1731945046973,-500.0,0.00013698,2]
[342507870,1731945046987,-500.0,0.00013698,2]
[342507871,1731945047000,-500.0,0.00013698,2]
[342507872,1731945047010,-151.0,0.00013698,2]
[342507873,1731945047019,-500.0,0.00013698,2]
[342507874,1731945047028,-500.0,0.00013698,2]
[342507875,1731945047038,-500.0,0.00013698,2]
[342507876,1731945047047,-500.0,0.00013698,2]
[342507877,1731945047056,-565.579117,0.00013698,2]
[342507878,1731945047066,-565.579117,0.00013698,2]
[342507879,1731945047075,-500.0,0.00013698,2]
[342507880,1731945047085,-534.23,0.00013698,2]
[342507881,1731945047095,-500.0,0.00013698,2]
[342507882,1731945047105,-500.0,0.00013698,2]
[342507883,1731945047116,-500.0,0.00013698,2]
[342507884,1731945047127,-500.0,0.00013698,2]
[342507885,1731945047139,-151.0,0.00013698,2]
[342507886,1731945047150,-151.0,0.00013698,2]
[342507887,1731945047161,-151.0,0.00013698,2]
[342507888,1731945047172,-151.0,0.00013698,2]
[342507889,1731945047183,-151.0,0.00013698,2]
[342507890,1731945047193,-237.757432,0.00013698,2]
[342507891,1731945047203,-500.0,0.00013698,2]
[342507892,1731945047214,-500.0,0.00013698,2]
[342507893,1731945047225,-177.386846,0.00013698,2]
[342507894,1731945047243,-177.386846,0.00013698,2]
[342507895,1731945047253,-500.0,0.00013698,2]
[342507896,1731945047265,-500.0,0.00013698,2]
[342507897,1731945047278,-500.0,0.00013698,2]
[342507898,1731945047293,-500.0,0.00013698,2]
[342507899,1731945047304,-500.0,0.00013698,2]
[342507900,1731945047315,-500.0,0.00013698,2]
[342507901,1731945047327,-500.0,0.00013698,2]
[342507902,1731945047338,-500.0,0.00013698,2]
[342507903,1731945047349,-500.0,0.00013698,2]
[342507904,1731945047360,-1000.0,0.00013698,2]
[342507905,1731945047372,-500.0,0.00013698,2]
[342507906,1731945047382,-500.0,0.00013698,2]
[342507907,1731945047393,-500.0,0.00013698,2]
[342507908,1731945047405,-500.0,0.00013698,2]
[342507909,1731945047416,-503.67101954,0.00013698,2]
[342507910,1731945047427,-151.0,0.00013698,2]
[342507911,1731945047438,-151.0,0.00013698,2]
[342507912,1731945047449,-500.0,0.00013698,2]